[Event "*** SCC Grand Prix: Titled Tuesday Blitz"]
[Site "Chess.com"]
[Date "2020.09.08"]
[Round "1"]
[White "sergeikim"]
[Black "Infernal_XaM"]
[Result "1/2-1/2"]
[WhiteElo "2457"]
[BlackElo "2901"]
[TimeControl "180+1"]
[EndTime "10:07:23 PDT"]
[Termination "Game drawn by repetition"]

1. d4 {[%clk 0:02:59.5]} 1... Nf6 {[%clk 0:02:59.6]} 2. c4 {[%clk 0:02:59]} 2...
e6 {[%clk 0:02:58.1]} 3. Nc3 {[%clk 0:02:59]} 3... Bb4 {[%clk 0:02:54]} 4. Qc2
{[%clk 0:02:58.9]} 4... b6 {[%clk 0:02:52.5]} 5. a3 {[%clk 0:02:58.8]} 5...
Bxc3+ {[%clk 0:02:52.1]} 6. Qxc3 {[%clk 0:02:59.7]} 6... Bb7 {[%clk 0:02:52.5]}
7. Nf3 {[%clk 0:02:59.6]} 7... O-O {[%clk 0:02:52]} 8. g3 {[%clk 0:02:59.8]}
8... c5 {[%clk 0:02:48.7]} 9. dxc5 {[%clk 0:02:58.9]} 9... Ne4 {[%clk 0:02:46]}
10. Qc2 {[%clk 0:02:58.2]} 10... Nxc5 {[%clk 0:02:45.7]} 11. b4 {[%clk
0:02:47.7]} 11... Be4 {[%clk 0:02:35.6]} 12. Qc3 {[%clk 0:02:46.6]} 12... Na4
{[%clk 0:02:23.4]} 13. Qd4 {[%clk 0:02:38.2]} 13... d5 {[%clk 0:02:15.3]} 14.
cxd5 {[%clk 0:02:33.4]} 14... Bxf3 {[%clk 0:02:07.9]} 15. exf3 {[%clk
0:02:32.3]} 15... Qxd5 {[%clk 0:01:25.5]} 16. Qxd5 {[%clk 0:02:27.8]} 16... exd5
{[%clk 0:01:25.7]} 17. Bb5 {[%clk 0:02:06]} 17... Nc3 {[%clk 0:01:24.6]} 18. Bd3
{[%clk 0:02:05.5]} 18... Re8+ {[%clk 0:01:23.4]} 19. Kd2 {[%clk 0:02:01.2]}
19... d4 {[%clk 0:01:23.7]} 20. Bb2 {[%clk 0:01:59]} 20... Nc6 {[%clk
0:01:22.2]} 21. Bxc3 {[%clk 0:01:55]} 21... dxc3+ {[%clk 0:01:22.1]} 22. Kxc3
{[%clk 0:01:55.9]} 22... Ne5 {[%clk 0:01:21.8]} 23. Be4 {[%clk 0:01:52.2]} 23...
Rac8+ {[%clk 0:01:21.5]} 24. Kb3 {[%clk 0:01:48.7]} 24... g6 {[%clk 0:01:14]}
25. Rac1 {[%clk 0:01:43.7]} 25... f5 {[%clk 0:01:09.7]} 26. Bd5+ {[%clk
0:01:41.1]} 26... Kg7 {[%clk 0:01:09.5]} 27. Rhd1 {[%clk 0:01:35.3]} 27... Red8
{[%clk 0:01:00]} 28. Rxc8 {[%clk 0:01:30.6]} 28... Rxc8 {[%clk 0:00:59.8]} 29.
h3 {[%clk 0:01:30.8]} 29... Rc7 {[%clk 0:00:56.5]} 30. f4 {[%clk 0:01:30.1]}
30... Nd7 {[%clk 0:00:55.7]} 31. a4 {[%clk 0:01:20.8]} 31... Nf6 {[%clk
0:00:54.7]} 32. Bf3 {[%clk 0:01:17.7]} 32... h5 {[%clk 0:00:54.8]} 33. a5 {[%clk
0:01:12.8]} 33... bxa5 {[%clk 0:00:48.9]} 34. bxa5 {[%clk 0:01:12.8]} 34... h4
{[%clk 0:00:49.3]} 35. Rd6 {[%clk 0:01:07.6]} 35... hxg3 {[%clk 0:00:35.2]} 36.
fxg3 {[%clk 0:01:07]} 36... Re7 {[%clk 0:00:35.7]} 37. Kc4 {[%clk 0:01:01.1]}
37... Ne8 {[%clk 0:00:27.3]} 38. Ra6 {[%clk 0:00:53.2]} 38... Rc7+ {[%clk
0:00:24.2]} 39. Rc6 {[%clk 0:00:50.4]} 39... Rd7 {[%clk 0:00:21.9]} 40. Bd5
{[%clk 0:00:44.1]} 40... Nc7 {[%clk 0:00:20.3]} 41. Be6 {[%clk 0:00:40.4]} 41...
Re7 {[%clk 0:00:19.2]} 42. Bd5 {[%clk 0:00:39.8]} 42... Rd7 {[%clk 0:00:17.5]}
43. Be6 {[%clk 0:00:39.3]} 43... Re7 {[%clk 0:00:18]} 44. Bd5 {[%clk 0:00:39]}
44... Kh6 {[%clk 0:00:17]} 45. g4 {[%clk 0:00:35.5]} 45... Kg7 {[%clk
0:00:14.9]} 46. g5 {[%clk 0:00:34.6]} 46... Rd7 {[%clk 0:00:13.6]} 47. Be6
{[%clk 0:00:33.9]} 47... Re7 {[%clk 0:00:14.1]} 48. Bd5 {[%clk 0:00:33.7]} 48...
Rd7 {[%clk 0:00:14.6]} 49. Be6 {[%clk 0:00:33.6]} 49... Re7 {[%clk 0:00:15.1]}
50. Bd5 {[%clk 0:00:33.3]} 1/2-1/2

[Event "*** SCC Grand Prix: Titled Tuesday Blitz"]
[Site "Chess.com"]
[Date "2020.09.08"]
[Round "1"]
[White "PowerThinking2650"]
[Black "DenLaz"]
[Result "0-1"]
[WhiteElo "2379"]
[BlackElo "2739"]
[TimeControl "180+1"]
[EndTime "10:07:23 PDT"]
[Termination "DenLaz won by resignation"]

1. e4 {[%clk 0:02:59.5]} 1... e5 {[%clk 0:02:57.9]} 2. Nf3 {[%clk 0:02:55]} 2...
Nc6 {[%clk 0:02:50.3]} 3. Nc3 {[%clk 0:02:54.6]} 3... Nf6 {[%clk 0:02:47.8]} 4.
d4 {[%clk 0:02:54.5]} 4... exd4 {[%clk 0:02:48.7]} 5. Nxd4 {[%clk 0:02:55.3]}
5... Bb4 {[%clk 0:02:44.7]} 6. Nxc6 {[%clk 0:02:55.2]} 6... bxc6 {[%clk
0:02:44.1]} 7. Bd3 {[%clk 0:02:55.3]} 7... O-O {[%clk 0:02:43.5]} 8. O-O {[%clk
0:02:54.6]} 8... d5 {[%clk 0:02:43.4]} 9. exd5 {[%clk 0:02:54.7]} 9... cxd5
{[%clk 0:02:44.3]} 10. Bg5 {[%clk 0:02:54.4]} 10... c6 {[%clk 0:02:43.7]} 11.
Qf3 {[%clk 0:02:54.4]} 11... Bd6 {[%clk 0:02:44.1]} 12. Rae1 {[%clk 0:02:47.3]}
12... h6 {[%clk 0:02:41.4]} 13. Bxf6 {[%clk 0:02:44]} 13... Qxf6 {[%clk
0:02:42.3]} 14. Qxf6 {[%clk 0:02:44.1]} 14... gxf6 {[%clk 0:02:43.2]} 15. Ne2
{[%clk 0:02:42.1]} 15... Rb8 {[%clk 0:02:26.7]} 16. b3 {[%clk 0:02:40.3]} 16...
Bd7 {[%clk 0:02:11.9]} 17. Ng3 {[%clk 0:02:39.8]} 17... Be5 {[%clk 0:01:52.9]}
18. Nf5 {[%clk 0:02:37.3]} 18... Bxf5 {[%clk 0:01:50.6]} 19. Bxf5 {[%clk
0:02:38.2]} 19... Rbd8 {[%clk 0:01:43.1]} 20. Re3 {[%clk 0:02:34.6]} 20... Rfe8
{[%clk 0:01:37.6]} 21. Rh3 {[%clk 0:02:29.8]} 21... Kg7 {[%clk 0:01:35.7]} 22.
Rh4 {[%clk 0:02:28.5]} 22... c5 {[%clk 0:01:14.8]} 23. Rg4+ {[%clk 0:02:23.8]}
23... Kf8 {[%clk 0:01:13.7]} 24. Ra4 {[%clk 0:02:22.7]} 24... Re7 {[%clk
0:01:11]} 25. Ra6 {[%clk 0:02:20.6]} 25... Bd4 {[%clk 0:01:01.5]} 26. Rc6 {[%clk
0:02:13.7]} 26... Kg7 {[%clk 0:00:53]} 27. g3 {[%clk 0:02:11.5]} 27... h5 {[%clk
0:00:45.2]} 28. Bd3 {[%clk 0:02:04.1]} 28... h4 {[%clk 0:00:44.3]} 29. Kg2
{[%clk 0:01:53.7]} 29... Rh8 {[%clk 0:00:42.7]} 30. Rd1 {[%clk 0:01:19]} 30...
Re5 {[%clk 0:00:36.5]} 31. g4 {[%clk 0:01:09.9]} 31... h3+ {[%clk 0:00:25.3]}
32. Kg3 {[%clk 0:01:08.7]} 32... Rhe8 {[%clk 0:00:23]} 33. a4 {[%clk 0:00:39.8]}
33... Re1 {[%clk 0:00:19.7]} 34. Rxe1 {[%clk 0:00:36.4]} 34... Rxe1 {[%clk
0:00:20.6]} 35. Kxh3 {[%clk 0:00:32.1]} 35... Bxf2 {[%clk 0:00:20.4]} 36. Kg2
{[%clk 0:00:31.3]} 36... Bd4 {[%clk 0:00:20.4]} 37. Rd6 {[%clk 0:00:28.3]} 37...
Rg1+ {[%clk 0:00:19.9]} 38. Kf3 {[%clk 0:00:27.4]} 38... Rh1 {[%clk 0:00:16.1]}
39. Rxd5 {[%clk 0:00:21.1]} 39... Rxh2 {[%clk 0:00:16.1]} 40. Rd7 {[%clk
0:00:21.2]} 40... Rf2+ {[%clk 0:00:11.7]} 41. Kg3 {[%clk 0:00:21]} 41... Rd2
{[%clk 0:00:11.1]} 42. Bc4 {[%clk 0:00:20.4]} 42... Be5+ {[%clk 0:00:11.6]} 43.
Kf3 {[%clk 0:00:20.4]} 43... Rxd7 {[%clk 0:00:12.5]} 0-1

[Event "*** SCC Grand Prix: Titled Tuesday Blitz"]
[Site "Chess.com"]
[Date "2020.09.08"]
[Round "1"]
[White "AlexSuv"]
[Black "FMalexhdez"]
[Result "1-0"]
[WhiteElo "2548"]
[BlackElo "2213"]
[TimeControl "180+1"]
[EndTime "10:07:23 PDT"]
[Termination "AlexSuv won on time"]

1. d4 {[%clk 0:02:53.6]} 1... Nf6 {[%clk 0:02:58.4]} 2. c4 {[%clk 0:02:50.3]}
2... e6 {[%clk 0:02:57.8]} 3. Nc3 {[%clk 0:02:49.4]} 3... Bb4 {[%clk 0:02:58]}
4. e3 {[%clk 0:02:49.4]} 4... c5 {[%clk 0:02:57.5]} 5. Ne2 {[%clk 0:02:48.3]}
5... d5 {[%clk 0:02:55.4]} 6. a3 {[%clk 0:02:48.3]} 6... cxd4 {[%clk 0:02:51.8]}
7. exd4 {[%clk 0:02:46.8]} 7... Be7 {[%clk 0:02:50.4]} 8. c5 {[%clk 0:02:47]}
8... O-O {[%clk 0:02:44.9]} 9. g3 {[%clk 0:02:47.2]} 9... e5 {[%clk 0:02:42]}
10. Bg2 {[%clk 0:02:32.6]} 10... exd4 {[%clk 0:02:38.1]} 11. Nxd4 {[%clk
0:02:12.9]} 11... Bxc5 {[%clk 0:02:35.9]} 12. O-O {[%clk 0:02:13.4]} 12... Nc6
{[%clk 0:02:34.9]} 13. Nb3 {[%clk 0:02:13.5]} 13... Be7 {[%clk 0:02:22.7]} 14.
Nxd5 {[%clk 0:02:13.4]} 14... Nxd5 {[%clk 0:02:20.8]} 15. Bxd5 {[%clk
0:02:08.6]} 15... Bh3 {[%clk 0:02:19.7]} 16. Re1 {[%clk 0:02:09.2]} 16... Bf6
{[%clk 0:02:17.6]} 17. Qf3 {[%clk 0:02:02.6]} 17... Ne5 {[%clk 0:02:12.4]} 18.
Qh1 {[%clk 0:01:55.1]} 18... Rc8 {[%clk 0:02:06.6]} 19. Rd1 {[%clk 0:01:50.7]}
19... Qe7 {[%clk 0:01:52.9]} 20. Bf4 {[%clk 0:01:44.4]} 20... Rc2 {[%clk
0:01:28.4]} 21. Rd2 {[%clk 0:01:27.3]} 21... Rfc8 {[%clk 0:01:26.8]} 22. Rad1
{[%clk 0:01:24.2]} 22... Ng6 {[%clk 0:01:19]} 23. Be3 {[%clk 0:01:18.8]} 23...
Bg4 {[%clk 0:01:06.7]} 24. Re1 {[%clk 0:01:14.9]} 24... Rxd2 {[%clk 0:01:02.9]}
25. Bxd2 {[%clk 0:01:15.8]} 25... Qd7 {[%clk 0:00:56.8]} 26. Bxb7 {[%clk
0:01:05.1]} 26... Rb8 {[%clk 0:00:54.2]} 27. Bc6 {[%clk 0:00:35.1]} 27... Qd3
{[%clk 0:00:50.7]} 28. Qd5 {[%clk 0:00:24]} 28... Qc2 {[%clk 0:00:28]} 29. Ba4
{[%clk 0:00:17.2]} 29... Qxb2 {[%clk 0:00:26.7]} 30. Bf4 {[%clk 0:00:15.5]}
30... Rd8 {[%clk 0:00:23.3]} 31. Qa5 {[%clk 0:00:12.7]} 31... Nxf4 {[%clk
0:00:20.3]} 32. gxf4 {[%clk 0:00:11.9]} 32... h6 {[%clk 0:00:18.8]} 33. Nc5
{[%clk 0:00:10.9]} 33... Qxa3 {[%clk 0:00:13.2]} 34. Ne4 {[%clk 0:00:09.9]}
34... Bd4 {[%clk 0:00:11]} 35. Qxd8+ {[%clk 0:00:09.3]} 35... Kh7 {[%clk
0:00:10.2]} 36. Qxd4 {[%clk 0:00:10]} 36... Qf3 {[%clk 0:00:06.9]} 37. Ng3
{[%clk 0:00:09.8]} 37... Bh3 {[%clk 0:00:06.9]} 38. Qe4+ {[%clk 0:00:10.2]}
38... Qxe4 {[%clk 0:00:06.2]} 39. Rxe4 {[%clk 0:00:11.1]} 1-0

[Event "*** SCC Grand Prix: Titled Tuesday Blitz"]
[Site "Chess.com"]
[Date "2020.09.08"]
[Round "1"]
[White "MustafayevFarid2004"]
[Black "Euge_chess"]
[Result "1-0"]
[WhiteElo "2506"]
[BlackElo "2106"]
[TimeControl "180+1"]
[EndTime "10:07:23 PDT"]
[Termination "MustafayevFarid2004 won by checkmate"]

1. d4 {[%clk 0:02:35.2]} 1... Nf6 {[%clk 0:02:58.6]} 2. c4 {[%clk 0:02:34]} 2...
c5 {[%clk 0:02:57.8]} 3. d5 {[%clk 0:02:31.3]} 3... e6 {[%clk 0:02:57.1]} 4. Nc3
{[%clk 0:02:31.1]} 4... exd5 {[%clk 0:02:57.2]} 5. cxd5 {[%clk 0:02:30.6]} 5...
d6 {[%clk 0:02:57.5]} 6. e4 {[%clk 0:02:28.6]} 6... g6 {[%clk 0:02:58.4]} 7. Bd3
{[%clk 0:02:27.4]} 7... Bg7 {[%clk 0:02:58.2]} 8. Nge2 {[%clk 0:02:26.8]} 8...
O-O {[%clk 0:02:57.6]} 9. h3 {[%clk 0:02:27.1]} 9... Re8 {[%clk 0:02:50.5]} 10.
O-O {[%clk 0:02:26.3]} 10... Na6 {[%clk 0:02:46.9]} 11. Bf4 {[%clk 0:02:22.3]}
11... Nc7 {[%clk 0:02:10.4]} 12. a4 {[%clk 0:02:19.7]} 12... b6 {[%clk
0:02:04.9]} 13. Bh2 {[%clk 0:02:17.8]} 13... a6 {[%clk 0:02:03.5]} 14. f4 {[%clk
0:02:15.7]} 14... Rb8 {[%clk 0:01:59.3]} 15. Qb3 {[%clk 0:01:57.1]} 15... b5
{[%clk 0:01:46.7]} 16. axb5 {[%clk 0:01:58]} 16... axb5 {[%clk 0:01:46.4]} 17.
e5 {[%clk 0:01:58.9]} 17... c4 {[%clk 0:01:41.9]} 18. Bxc4 {[%clk 0:01:58.6]}
18... bxc4 {[%clk 0:01:24.9]} 19. Qxb8 {[%clk 0:01:58.3]} 19... Nfxd5 {[%clk
0:01:13.3]} 20. Rfd1 {[%clk 0:01:47.5]} 20... dxe5 {[%clk 0:00:47.2]} 21. Nxd5
{[%clk 0:01:36]} 21... Nxd5 {[%clk 0:00:44.1]} 22. fxe5 {[%clk 0:01:36.4]} 22...
Be6 {[%clk 0:00:37.9]} 23. Qxd8 {[%clk 0:01:35.7]} 23... Rxd8 {[%clk 0:00:37.7]}
24. Nf4 {[%clk 0:01:35.8]} 24... Bxe5 {[%clk 0:00:32.4]} 25. Nxd5 {[%clk
0:01:35.5]} 25... Bxh2+ {[%clk 0:00:31.9]} 26. Kxh2 {[%clk 0:01:36.4]} 26...
Rxd5 {[%clk 0:00:23.6]} 27. Ra8+ {[%clk 0:01:29]} 27... Kg7 {[%clk 0:00:23.1]}
28. Rxd5 {[%clk 0:01:29.4]} 28... Bxd5 {[%clk 0:00:22.8]} 29. Rd8 {[%clk
0:01:30.3]} 29... Be6 {[%clk 0:00:21.6]} 30. Kg3 {[%clk 0:01:30.7]} 30... Kf6
{[%clk 0:00:21.7]} 31. Kf4 {[%clk 0:01:31]} 31... h6 {[%clk 0:00:21.3]} 32. h4
{[%clk 0:01:28.2]} 32... g5+ {[%clk 0:00:20]} 33. hxg5+ {[%clk 0:01:29.1]} 33...
hxg5+ {[%clk 0:00:20.9]} 34. Ke4 {[%clk 0:01:29.4]} 34... Bf5+ {[%clk
0:00:19.9]} 35. Kd4 {[%clk 0:01:26.5]} 35... Be6 {[%clk 0:00:20.8]} 36. Rd6
{[%clk 0:01:14.8]} 36... g4 {[%clk 0:00:20.5]} 37. g3 {[%clk 0:01:14.1]} 37...
Kf5 {[%clk 0:00:20.1]} 38. Rxe6 {[%clk 0:01:07.1]} 38... fxe6 {[%clk 0:00:18.5]}
39. Kxc4 {[%clk 0:01:08]} 39... Ke4 {[%clk 0:00:18.4]} 40. b4 {[%clk 0:01:07]}
40... Kf3 {[%clk 0:00:19.3]} 41. b5 {[%clk 0:01:07.5]} 41... Kxg3 {[%clk
0:00:20.2]} 42. b6 {[%clk 0:01:08.4]} 42... Kf2 {[%clk 0:00:19.1]} 43. b7 {[%clk
0:01:08.7]} 43... g3 {[%clk 0:00:20]} 44. b8=Q {[%clk 0:01:09.5]} 44... g2
{[%clk 0:00:20.9]} 45. Qf4+ {[%clk 0:01:09.4]} 45... Ke1 {[%clk 0:00:14.5]} 46.
Qg3+ {[%clk 0:01:08.7]} 46... Kf1 {[%clk 0:00:15.4]} 47. Qf3+ {[%clk 0:01:09.2]}
47... Kg1 {[%clk 0:00:14.2]} 48. Kd3 {[%clk 0:01:09.5]} 48... Kh2 {[%clk
0:00:13.6]} 49. Qh5+ {[%clk 0:01:08.6]} 49... Kg3 {[%clk 0:00:12.6]} 50. Qg5+
{[%clk 0:01:08.7]} 50... Kf2 {[%clk 0:00:12.4]} 51. Qf4+ {[%clk 0:01:08.1]}
51... Ke1 {[%clk 0:00:09.1]} 52. Qg3+ {[%clk 0:01:08.2]} 52... Kf1 {[%clk
0:00:09]} 53. Qf3+ {[%clk 0:01:06.4]} 53... Kg1 {[%clk 0:00:05.3]} 54. Ke2
{[%clk 0:01:06.2]} 54... Kh2 {[%clk 0:00:06.2]} 55. Qh5+ {[%clk 0:01:06.5]}
55... Kg3 {[%clk 0:00:05.7]} 56. Qg5+ {[%clk 0:01:06.7]} 56... Kh2 {[%clk
0:00:05.6]} 57. Kf2 {[%clk 0:01:07]} 57... e5 {[%clk 0:00:02.6]} 58. Qh5# {[%clk
0:01:06.7]} 1-0

[Event "*** SCC Grand Prix: Titled Tuesday Blitz"]
[Site "Chess.com"]
[Date "2020.09.08"]
[Round "1"]
[White "1stSecond"]
[Black "Chessbard1972"]
[Result "1-0"]
[WhiteElo "2800"]
[BlackElo "2404"]
[TimeControl "180+1"]
[EndTime "10:07:26 PDT"]
[Termination "1stSecond won on time"]

1. d4 {[%clk 0:02:47.4]} 1... d5 {[%clk 0:02:58.8]} 2. c4 {[%clk 0:02:47.8]}
2... e6 {[%clk 0:02:58.7]} 3. Nc3 {[%clk 0:02:48.1]} 3... c5 {[%clk 0:02:58.5]}
4. cxd5 {[%clk 0:02:47.7]} 4... exd5 {[%clk 0:02:58.4]} 5. Nf3 {[%clk
0:02:45.3]} 5... Nc6 {[%clk 0:02:58.1]} 6. g3 {[%clk 0:02:41.3]} 6... Nf6 {[%clk
0:02:57.4]} 7. Bg2 {[%clk 0:02:41.3]} 7... Be7 {[%clk 0:02:56]} 8. O-O {[%clk
0:02:40.7]} 8... O-O {[%clk 0:02:55.4]} 9. dxc5 {[%clk 0:02:29]} 9... Bxc5
{[%clk 0:02:53.5]} 10. Bg5 {[%clk 0:02:25.5]} 10... d4 {[%clk 0:02:52.6]} 11.
Bxf6 {[%clk 0:02:14.2]} 11... Qxf6 {[%clk 0:02:51.9]} 12. Ne4 {[%clk 0:02:14.7]}
12... Qe7 {[%clk 0:02:51.4]} 13. Nxc5 {[%clk 0:02:15.6]} 13... Qxc5 {[%clk
0:02:51.2]} 14. Rc1 {[%clk 0:02:16]} 14... Qb6 {[%clk 0:02:50.8]} 15. Qd2 {[%clk
0:02:07.6]} 15... Be6 {[%clk 0:02:40.6]} 16. a3 {[%clk 0:02:01.4]} 16... a5
{[%clk 0:02:39.1]} 17. Ng5 {[%clk 0:01:58.2]} 17... Bb3 {[%clk 0:02:27.7]} 18.
Qd3 {[%clk 0:01:42.4]} 18... g6 {[%clk 0:02:09.5]} 19. Bxc6 {[%clk 0:01:38.1]}
19... bxc6 {[%clk 0:02:08]} 20. Ne4 {[%clk 0:01:38.6]} 20... Rad8 {[%clk
0:01:51.5]} 21. Nc5 {[%clk 0:01:29.7]} 21... Bd5 {[%clk 0:01:41.5]} 22. b3
{[%clk 0:00:38]} 22... Rfe8 {[%clk 0:01:37.7]} 23. Rfd1 {[%clk 0:00:32.6]} 23...
f5 {[%clk 0:01:23.6]} 24. Qxd4 {[%clk 0:00:24.2]} 24... Bxb3 {[%clk 0:01:05.2]}
25. Nd7 {[%clk 0:00:24.3]} 25... Qxd4 {[%clk 0:01:00.6]} 26. Rxd4 {[%clk
0:00:25.2]} 26... Kg7 {[%clk 0:00:52.9]} 27. e3 {[%clk 0:00:19.1]} 27... Bd5
{[%clk 0:00:51.4]} 28. Nc5 {[%clk 0:00:15.8]} 28... Bf7 {[%clk 0:00:45.6]} 29.
Rcd1 {[%clk 0:00:14.4]} 29... Rxd4 {[%clk 0:00:43.7]} 30. Rxd4 {[%clk
0:00:15.3]} 30... Bd5 {[%clk 0:00:42.6]} 31. Ra4 {[%clk 0:00:13.4]} 31... Rb8
{[%clk 0:00:39.7]} 32. Kf1 {[%clk 0:00:12]} 32... Bf3 {[%clk 0:00:36.7]} 33. Ke1
{[%clk 0:00:10.2]} 33... Rb2 {[%clk 0:00:28.5]} 34. Nd3 {[%clk 0:00:06.5]} 34...
Re2+ {[%clk 0:00:25.2]} 35. Kf1 {[%clk 0:00:06.6]} 35... Rd2 {[%clk 0:00:17.4]}
36. Ne1 {[%clk 0:00:07]} 1-0

[Event "*** SCC Grand Prix: Titled Tuesday Blitz"]
[Site "Chess.com"]
[Date "2020.09.08"]
[Round "1"]
[White "KiranManisha"]
[Black "TheMagnet"]
[Result "0-1"]
[WhiteElo "2249"]
[BlackElo "2577"]
[TimeControl "180+1"]
[EndTime "10:07:33 PDT"]
[Termination "TheMagnet won by checkmate"]

1. e4 {[%clk 0:02:59.4]} 1... c5 {[%clk 0:02:59.9]} 2. Nf3 {[%clk 0:02:58.7]}
2... g6 {[%clk 0:03:00.4]} 3. d4 {[%clk 0:02:58.6]} 3... cxd4 {[%clk 0:03:01.3]}
4. Nxd4 {[%clk 0:02:58.7]} 4... Bg7 {[%clk 0:03:01.7]} 5. Nc3 {[%clk 0:02:58.6]}
5... Nc6 {[%clk 0:03:02]} 6. Nb3 {[%clk 0:02:58.6]} 6... Nf6 {[%clk 0:03:02.2]}
7. Be2 {[%clk 0:02:58.1]} 7... O-O {[%clk 0:03:01.6]} 8. O-O {[%clk 0:02:58.7]}
8... d6 {[%clk 0:03:02.1]} 9. Re1 {[%clk 0:02:58.8]} 9... Be6 {[%clk 0:03:00.8]}
10. Bf1 {[%clk 0:02:58.5]} 10... Rc8 {[%clk 0:03:00.6]} 11. Bg5 {[%clk
0:02:58.1]} 11... a6 {[%clk 0:02:58.8]} 12. a4 {[%clk 0:02:57.2]} 12... Ne5
{[%clk 0:02:53.2]} 13. Nd5 {[%clk 0:02:32.6]} 13... Bxd5 {[%clk 0:02:52.5]} 14.
exd5 {[%clk 0:02:33.5]} 14... Nc4 {[%clk 0:02:52.6]} 15. Rb1 {[%clk 0:02:28.4]}
15... b5 {[%clk 0:02:43.2]} 16. axb5 {[%clk 0:02:27.6]} 16... axb5 {[%clk
0:02:44.1]} 17. c3 {[%clk 0:02:28.2]} 17... Re8 {[%clk 0:02:40.7]} 18. g3 {[%clk
0:02:26.2]} 18... Qb6 {[%clk 0:02:38.5]} 19. Bh3 {[%clk 0:02:24.9]} 19... Rc7
{[%clk 0:02:33.2]} 20. Bg2 {[%clk 0:02:23.4]} 20... h6 {[%clk 0:02:21.4]} 21.
Bf4 {[%clk 0:02:21.1]} 21... b4 {[%clk 0:02:17.5]} 22. Nd4 {[%clk 0:02:20.6]}
22... Nh5 {[%clk 0:02:08.4]} 23. Be3 {[%clk 0:02:06.8]} 23... Nxe3 {[%clk
0:02:03.8]} 24. Rxe3 {[%clk 0:02:07.7]} 24... Nf6 {[%clk 0:01:52]} 25. Nc6
{[%clk 0:02:06]} 25... e5 {[%clk 0:01:49.3]} 26. c4 {[%clk 0:02:03.7]} 26... Nd7
{[%clk 0:01:42.6]} 27. b3 {[%clk 0:02:02.5]} 27... Nc5 {[%clk 0:01:40.2]} 28.
Ra1 {[%clk 0:02:02.8]} 28... e4 {[%clk 0:01:34.8]} 29. Ra5 {[%clk 0:01:56.5]}
29... Rxc6 {[%clk 0:01:33.6]} 30. Rb5 {[%clk 0:01:56.5]} 30... Qxb5 {[%clk
0:01:24]} 31. cxb5 {[%clk 0:01:56.1]} 31... Rb6 {[%clk 0:01:24.4]} 32. Bf1
{[%clk 0:01:55]} 32... f5 {[%clk 0:01:23.2]} 33. Bc4 {[%clk 0:01:53.1]} 33...
Ra8 {[%clk 0:01:22.4]} 34. Kg2 {[%clk 0:01:53.2]} 34... Ra1 {[%clk 0:01:16.6]}
35. Qe2 {[%clk 0:01:48.8]} 35... Bd4 {[%clk 0:01:14.8]} 36. h4 {[%clk
0:01:46.3]} 36... Kg7 {[%clk 0:01:13.8]} 37. Qd2 {[%clk 0:01:45.8]} 37... Be5
{[%clk 0:01:06.3]} 38. Re1 {[%clk 0:01:44.6]} 38... Ra3 {[%clk 0:01:06.2]} 39.
Qc2 {[%clk 0:01:43.5]} 39... Rb8 {[%clk 0:01:05.7]} 40. f3 {[%clk 0:01:41.4]}
40... Rba8 {[%clk 0:01:05.3]} 41. Re2 {[%clk 0:01:41.2]} 41... exf3+ {[%clk
0:01:01.6]} 42. Kxf3 {[%clk 0:01:41]} 42... Na4 {[%clk 0:01:00.6]} 43. Rxe5
{[%clk 0:01:39]} 43... dxe5 {[%clk 0:01:00.1]} 44. Qe2 {[%clk 0:01:39.3]} 44...
e4+ {[%clk 0:00:59.6]} 45. Kf4 {[%clk 0:01:39.2]} 45... Nc3 {[%clk 0:00:57]} 46.
Qe3 {[%clk 0:01:38.5]} 46... Ra1 {[%clk 0:00:43.5]} 47. Qd4+ {[%clk 0:01:38.7]}
47... Kh7 {[%clk 0:00:44.1]} 48. Qf6 {[%clk 0:01:32.1]} 48... Rf1+ {[%clk
0:00:39.4]} 49. Bxf1 {[%clk 0:01:30.8]} 49... Nxd5+ {[%clk 0:00:39.2]} 50. Ke5
{[%clk 0:01:29.7]} 50... Nxf6 {[%clk 0:00:40.1]} 51. Kxf6 {[%clk 0:01:30]} 51...
Rb8 {[%clk 0:00:37.4]} 52. Ke5 {[%clk 0:01:29.4]} 52... Kg7 {[%clk 0:00:37.7]}
53. Kd6 {[%clk 0:01:25.7]} 53... Kf6 {[%clk 0:00:38.1]} 54. Kc7 {[%clk
0:01:24.3]} 54... Rh8 {[%clk 0:00:36.6]} 55. b6 {[%clk 0:01:24.2]} 55... g5
{[%clk 0:00:37.1]} 56. b7 {[%clk 0:01:23.7]} 56... f4 {[%clk 0:00:36.3]} 57.
hxg5+ {[%clk 0:01:22.7]} 57... hxg5 {[%clk 0:00:36.2]} 58. gxf4 {[%clk 0:01:23]}
58... gxf4 {[%clk 0:00:37.1]} 59. Bh3 {[%clk 0:01:22.9]} 59... e3 {[%clk
0:00:23.7]} 60. Bg4 {[%clk 0:01:20.4]} 60... Rh7+ {[%clk 0:00:21.8]} 61. Kc6
{[%clk 0:01:11.8]} 61... Rxb7 {[%clk 0:00:21.3]} 62. Kxb7 {[%clk 0:01:11.8]}
62... Ke5 {[%clk 0:00:20]} 63. Kc6 {[%clk 0:01:09.4]} 63... Kd4 {[%clk
0:00:20.3]} 64. Kb5 {[%clk 0:01:08.7]} 64... Kc3 {[%clk 0:00:20.6]} 65. Ka4
{[%clk 0:01:08.9]} 65... Kd2 {[%clk 0:00:20.4]} 66. Kxb4 {[%clk 0:01:08.7]}
66... e2 {[%clk 0:00:20.1]} 67. Bxe2 {[%clk 0:01:08.7]} 67... Kxe2 {[%clk
0:00:21]} 68. Kc5 {[%clk 0:01:09.2]} 68... f3 {[%clk 0:00:21.9]} 69. b4 {[%clk
0:01:09.7]} 69... f2 {[%clk 0:00:22.8]} 70. b5 {[%clk 0:01:10.3]} 70... f1=Q
{[%clk 0:00:23.7]} 71. b6 {[%clk 0:01:10.6]} 71... Qf3 {[%clk 0:00:23.8]} 72.
Kd6 {[%clk 0:01:10.4]} 72... Qb7 {[%clk 0:00:24.4]} 73. Kc5 {[%clk 0:01:10.6]}
73... Kd3 {[%clk 0:00:24.8]} 74. Kb5 {[%clk 0:01:11.1]} 74... Kd4 {[%clk
0:00:24.6]} 75. Ka5 {[%clk 0:01:10.9]} 75... Kc4 {[%clk 0:00:24]} 76. Ka4 {[%clk
0:01:11.7]} 76... Qa6# {[%clk 0:00:24.7]} 0-1